[Event "*** Titled Tuesday Blitz"]
[Site "Chess.com"]
[Date "2020.04.14"]
[Round "7"]
[White "PrinceCharming92"]
[Black "cukin84"]
[Result "1-0"]
[WhiteElo "2315"]
[BlackElo "2105"]
[TimeControl "180+1"]
[EndTime "11:14:06 PDT"]
[Termination "PrinceCharming92 won by resignation"]

1. e4 {[%clk 0:03:00.9]} 1... c6 {[%clk 0:02:59.5]} 2. d4 {[%clk 0:03:00.9]}
2... d5 {[%clk 0:02:59.4]} 3. exd5 {[%clk 0:03:01.8]} 3... cxd5 {[%clk
0:02:59.1]} 4. c4 {[%clk 0:02:58.5]} 4... Nf6 {[%clk 0:02:58.2]} 5. Nc3 {[%clk
0:02:56.7]} 5... Nc6 {[%clk 0:02:58.2]} 6. Nf3 {[%clk 0:02:55.9]} 6... Bg4
{[%clk 0:02:57.6]} 7. c5 {[%clk 0:02:55.2]} 7... Bxf3 {[%clk 0:02:52.4]} 8. gxf3
{[%clk 0:02:52.7]} 8... e6 {[%clk 0:02:52.5]} 9. Bb5 {[%clk 0:02:51.6]} 9... Qc7
{[%clk 0:02:44.8]} 10. Be3 {[%clk 0:02:32.2]} 10... a6 {[%clk 0:02:43.7]} 11.
Ba4 {[%clk 0:02:31.8]} 11... Be7 {[%clk 0:02:38.6]} 12. Qd2 {[%clk 0:02:32.1]}
12... O-O {[%clk 0:02:36.3]} 13. a3 {[%clk 0:02:31.6]} 13... b5 {[%clk
0:02:35.5]} 14. cxb6 {[%clk 0:02:30.8]} 14... Qxb6 {[%clk 0:02:35.2]} 15. b4
{[%clk 0:02:31.4]} 15... Rac8 {[%clk 0:02:31.7]} 16. Rc1 {[%clk 0:02:30.3]}
16... Na7 {[%clk 0:02:21]} 17. Qd3 {[%clk 0:02:23.8]} 17... g6 {[%clk
0:02:09.1]} 18. O-O {[%clk 0:02:22.9]} 18... Rc4 {[%clk 0:02:08.2]} 19. Bb3
{[%clk 0:02:17.7]} 19... Rc6 {[%clk 0:02:02.3]} 20. Na4 {[%clk 0:02:16.4]} 20...
Qc7 {[%clk 0:01:57.1]} 21. Nc5 {[%clk 0:02:14.5]} 21... Bxc5 {[%clk 0:01:54.4]}
22. dxc5 {[%clk 0:02:11.8]} 22... Nb5 {[%clk 0:01:44.8]} 23. a4 {[%clk
0:02:09.2]} 23... Na7 {[%clk 0:01:42.8]} 24. Bd4 {[%clk 0:02:05.1]} 24... e5
{[%clk 0:01:41.8]} 25. Be3 {[%clk 0:01:58.9]} 25... Rd8 {[%clk 0:01:34.9]} 26.
Bg5 {[%clk 0:01:56.5]} 26... Nc8 {[%clk 0:01:25.6]} 27. Rfd1 {[%clk 0:01:34.7]}
27... Ne7 {[%clk 0:01:24.5]} 28. f4 {[%clk 0:01:11.9]} 28... e4 {[%clk 0:01:23]}
29. Qd4 {[%clk 0:01:09.6]} 29... Nf5 {[%clk 0:01:21.8]} 30. Qe5 {[%clk
0:01:09.4]} 30... Ng4 {[%clk 0:00:51.9]} 31. Qxc7 {[%clk 0:01:00.7]} 31... Rxc7
{[%clk 0:00:52.1]} 32. Bxd8 {[%clk 0:01:00.9]} 32... Rc8 {[%clk 0:00:52.5]} 33.
Bxd5 {[%clk 0:00:52.8]} 33... e3 {[%clk 0:00:48.8]} 34. f3 {[%clk 0:00:24.7]}
34... e2 {[%clk 0:00:44.9]} 35. fxg4 {[%clk 0:00:23.7]} 35... exd1=Q+ {[%clk
0:00:44]} 36. Rxd1 {[%clk 0:00:24]} 36... Ne3 {[%clk 0:00:43]} 37. Rd3 {[%clk
0:00:23.9]} 37... Nxg4 {[%clk 0:00:37.4]} 38. c6 {[%clk 0:00:20.7]} 38... Kg7
{[%clk 0:00:32.6]} 39. c7 {[%clk 0:00:20.9]} 39... Nf6 {[%clk 0:00:26]} 40.
Bxf6+ {[%clk 0:00:20.3]} 40... Kxf6 {[%clk 0:00:25.7]} 41. Rc3 {[%clk 0:00:21]}
41... Ke7 {[%clk 0:00:21.8]} 42. Bb7 {[%clk 0:00:21.3]} 42... Rb8 {[%clk
0:00:20.2]} 43. cxb8=Q {[%clk 0:00:21.1]} 1-0

[Event "*** Titled Tuesday Blitz"]
[Site "Chess.com"]
[Date "2020.04.14"]
[Round "7"]
[White "beto-betun"]
[Black "Bacyanide"]
[Result "0-1"]
[WhiteElo "2108"]
[BlackElo "2334"]
[TimeControl "180+1"]
[EndTime "11:14:07 PDT"]
[Termination "Bacyanide won on time"]

1. d4 {[%clk 0:03:00.9]} 1... d5 {[%clk 0:02:58.9]} 2. Nf3 {[%clk 0:03:00.2]}
2... Nf6 {[%clk 0:02:58.4]} 3. c4 {[%clk 0:02:57.1]} 3... e6 {[%clk 0:02:58.3]}
4. g3 {[%clk 0:02:55.1]} 4... dxc4 {[%clk 0:02:55.3]} 5. Bg2 {[%clk 0:02:53]}
5... a6 {[%clk 0:02:52.9]} 6. a4 {[%clk 0:02:52.1]} 6... Nc6 {[%clk 0:02:52.6]}
7. O-O {[%clk 0:02:47.4]} 7... Rb8 {[%clk 0:02:41.3]} 8. a5 {[%clk 0:02:19.6]}
8... Bb4 {[%clk 0:02:35.4]} 9. Qc2 {[%clk 0:02:05.4]} 9... Bxa5 {[%clk
0:02:09.9]} 10. Qxc4 {[%clk 0:02:00.9]} 10... Bb6 {[%clk 0:01:53.9]} 11. Rd1
{[%clk 0:01:57.3]} 11... O-O {[%clk 0:01:52.8]} 12. b4 {[%clk 0:01:45.4]} 12...
Na7 {[%clk 0:01:45.4]} 13. Na3 {[%clk 0:01:33.5]} 13... Bd7 {[%clk 0:01:44.5]}
14. Bb2 {[%clk 0:01:27.4]} 14... Nb5 {[%clk 0:01:42.5]} 15. Qc2 {[%clk
0:01:15.4]} 15... Nxa3 {[%clk 0:01:41.9]} 16. Rxa3 {[%clk 0:01:11.2]} 16... Bb5
{[%clk 0:01:42.4]} 17. Ne5 {[%clk 0:01:01.3]} 17... c6 {[%clk 0:01:41.5]} 18. e4
{[%clk 0:00:43.2]} 18... Qe7 {[%clk 0:01:39.4]} 19. Rf3 {[%clk 0:00:32.3]} 19...
Rfd8 {[%clk 0:01:27.9]} 20. Bf1 {[%clk 0:00:24.7]} 20... Bxf1 {[%clk 0:01:23.4]}
21. Kxf1 {[%clk 0:00:25.3]} 21... Qxb4 {[%clk 0:01:23.3]} 22. Rxf6 {[%clk
0:00:23.1]} 22... gxf6 {[%clk 0:01:21.8]} 23. Ng4 {[%clk 0:00:21.5]} 23... Bxd4
{[%clk 0:00:59.7]} 24. Bxd4 {[%clk 0:00:21.2]} 24... Rxd4 {[%clk 0:00:58.7]} 25.
Nxf6+ {[%clk 0:00:21.8]} 25... Kg7 {[%clk 0:00:57.9]} 26. e5 {[%clk 0:00:17.2]}
26... Qc4+ {[%clk 0:00:41.7]} 27. Qxc4 {[%clk 0:00:16.2]} 27... Rxc4 {[%clk
0:00:42.6]} 28. Rd3 {[%clk 0:00:03.6]} 28... b5 {[%clk 0:00:41.7]} 29. g4 {[%clk
0:00:04.1]} 29... h6 {[%clk 0:00:37.5]} 30. h4 {[%clk 0:00:02]} 30... b4 {[%clk
0:00:37.5]} 31. g5 {[%clk 0:00:02.6]} 31... Rxh4 {[%clk 0:00:37.5]} 32. gxh6+
{[%clk 0:00:01.4]} 32... Rxh6 {[%clk 0:00:37.3]} 33. Rg3+ {[%clk 0:00:02.3]}
33... Rg6 {[%clk 0:00:34.3]} 34. Rh3 {[%clk 0:00:02.7]} 34... Rxf6 {[%clk
0:00:34.2]} 35. exf6+ {[%clk 0:00:02.4]} 35... Kxf6 {[%clk 0:00:35.1]} 36. Rf3+
{[%clk 0:00:02.9]} 36... Ke7 {[%clk 0:00:35.2]} 37. Re3 {[%clk 0:00:03.6]} 37...
b3 {[%clk 0:00:35.5]} 38. Re1 {[%clk 0:00:02.4]} 38... b2 {[%clk 0:00:35.4]} 39.
Rb1 {[%clk 0:00:03.3]} 39... a5 {[%clk 0:00:35.9]} 40. Ke2 {[%clk 0:00:04.2]}
40... a4 {[%clk 0:00:36.5]} 41. Kd2 {[%clk 0:00:05.1]} 41... a3 {[%clk
0:00:36.9]} 42. Kc2 {[%clk 0:00:06]} 42... c5 {[%clk 0:00:36.7]} 0-1

[Event "*** Titled Tuesday Blitz"]
[Site "Chess.com"]
[Date "2020.04.14"]
[Round "7"]
[White "Fh2411"]
[Black "Anurag328"]
[Result "0-1"]
[WhiteElo "2532"]
[BlackElo "2762"]
[TimeControl "180+1"]
[EndTime "11:14:09 PDT"]
[Termination "Anurag328 won on time"]

1. d4 {[%clk 0:02:58.7]} 1... Nf6 {[%clk 0:02:59.6]} 2. Nf3 {[%clk 0:02:59.6]}
2... c5 {[%clk 0:02:58.4]} 3. d5 {[%clk 0:02:58.1]} 3... g6 {[%clk 0:02:58]} 4.
c4 {[%clk 0:02:58]} 4... b5 {[%clk 0:02:58.1]} 5. cxb5 {[%clk 0:02:48.1]} 5...
a6 {[%clk 0:02:58.4]} 6. bxa6 {[%clk 0:02:48.4]} 6... Bg7 {[%clk 0:02:58.2]} 7.
Nc3 {[%clk 0:02:48.1]} 7... O-O {[%clk 0:02:57.9]} 8. g3 {[%clk 0:02:47.5]} 8...
d6 {[%clk 0:02:56.9]} 9. Bg2 {[%clk 0:02:41.5]} 9... Nbd7 {[%clk 0:02:52.8]} 10.
O-O {[%clk 0:02:40.2]} 10... Nb6 {[%clk 0:02:52.8]} 11. Re1 {[%clk 0:02:10.5]}
11... Bxa6 {[%clk 0:01:58.9]} 12. e4 {[%clk 0:02:03.4]} 12... Nc4 {[%clk
0:01:59]} 13. e5 {[%clk 0:01:53.6]} 13... Ng4 {[%clk 0:01:51.4]} 14. e6 {[%clk
0:01:42.8]} 14... fxe6 {[%clk 0:01:51.5]} 15. Rxe6 {[%clk 0:01:36.9]} 15... Qb6
{[%clk 0:01:10.7]} 16. Qc2 {[%clk 0:00:51.1]} 16... Nce5 {[%clk 0:00:46.2]} 17.
Bf4 {[%clk 0:00:35.8]} 17... Nd3 {[%clk 0:00:37.1]} 18. Be3 {[%clk 0:00:29.6]}
18... Nxe3 {[%clk 0:00:28.3]} 19. fxe3 {[%clk 0:00:28.9]} 19... Qxb2 {[%clk
0:00:21.6]} 20. Qxb2 {[%clk 0:00:19.8]} 20... Nxb2 {[%clk 0:00:22.5]} 21. Rc1
{[%clk 0:00:20.1]} 21... Nd3 {[%clk 0:00:23]} 22. Rc2 {[%clk 0:00:16.3]} 22...
Rxf3 {[%clk 0:00:23.3]} 23. Bxf3 {[%clk 0:00:15.3]} 23... Ne1 {[%clk 0:00:23.8]}
24. Rc1 {[%clk 0:00:02.9]} 24... Nxf3+ {[%clk 0:00:24.1]} 25. Kg2 {[%clk
0:00:03.3]} 25... Rf8 {[%clk 0:00:18]} 26. Rxe7 {[%clk 0:00:03.5]} 26... Be5
{[%clk 0:00:05.9]} 27. Ne4 {[%clk 0:00:03.1]} 27... Bd3 {[%clk 0:00:05.5]} 28.
Nf2 {[%clk 0:00:01.1]} 28... Be2 {[%clk 0:00:05.9]} 0-1

[Event "*** Titled Tuesday Blitz"]
[Site "Chess.com"]
[Date "2020.04.14"]
[Round "7"]
[White "farzadbfd"]
[Black "LiemLe"]
[Result "0-1"]
[WhiteElo "2741"]
[BlackElo "2999"]
[TimeControl "180+1"]
[EndTime "11:14:10 PDT"]
[Termination "LiemLe won by resignation"]

1. e4 {[%clk 0:02:19.8]} 1... e5 {[%clk 0:02:57.9]} 2. Nf3 {[%clk 0:02:19.6]}
2... Nc6 {[%clk 0:02:57.9]} 3. Bc4 {[%clk 0:02:20.1]} 3... Bc5 {[%clk
0:02:57.5]} 4. O-O {[%clk 0:02:20.3]} 4... Nf6 {[%clk 0:02:57.5]} 5. d3 {[%clk
0:02:20.7]} 5... O-O {[%clk 0:02:55.7]} 6. Re1 {[%clk 0:02:21.1]} 6... d6 {[%clk
0:02:55.5]} 7. Bb3 {[%clk 0:02:21.3]} 7... Ne7 {[%clk 0:02:51.5]} 8. Nbd2 {[%clk
0:02:18.4]} 8... Ng6 {[%clk 0:02:51.2]} 9. Nf1 {[%clk 0:02:18.4]} 9... Re8
{[%clk 0:02:40.4]} 10. Be3 {[%clk 0:02:18]} 10... Bb6 {[%clk 0:02:39.2]} 11.
Bxb6 {[%clk 0:02:17.1]} 11... axb6 {[%clk 0:02:40.1]} 12. Ng3 {[%clk 0:02:16]}
12... h6 {[%clk 0:02:34.9]} 13. c3 {[%clk 0:02:14.7]} 13... c5 {[%clk
0:02:31.7]} 14. h3 {[%clk 0:02:09.4]} 14... b5 {[%clk 0:02:29.4]} 15. a4 {[%clk
0:02:01.2]} 15... Bd7 {[%clk 0:02:16.3]} 16. axb5 {[%clk 0:01:56.4]} 16... Rxa1
{[%clk 0:02:17.2]} 17. Qxa1 {[%clk 0:01:56.7]} 17... Bxb5 {[%clk 0:02:18.1]} 18.
d4 {[%clk 0:01:55.2]} 18... Qc7 {[%clk 0:02:09.3]} 19. Qd1 {[%clk 0:01:24.3]}
19... Ra8 {[%clk 0:02:07]} 20. dxe5 {[%clk 0:01:06.3]} 20... dxe5 {[%clk
0:02:07.9]} 21. Bd5 {[%clk 0:00:51.2]} 21... c4 {[%clk 0:02:04]} 22. Nf5 {[%clk
0:00:48.4]} 22... Rd8 {[%clk 0:02:00.5]} 23. N3h4 {[%clk 0:00:15.9]} 23... Nf4
{[%clk 0:01:54]} 24. Qf3 {[%clk 0:00:15.8]} 24... Kh7 {[%clk 0:01:35.9]} 25. Ne3
{[%clk 0:00:14.4]} 25... g6 {[%clk 0:01:03.3]} 26. Kh2 {[%clk 0:00:13.7]} 26...
Kg7 {[%clk 0:00:54.3]} 27. g3 {[%clk 0:00:13.7]} 27... Nd3 {[%clk 0:00:54]} 28.
Re2 {[%clk 0:00:13.3]} 28... Nh7 {[%clk 0:00:40.6]} 29. Rd2 {[%clk 0:00:12.2]}
29... Ng5 {[%clk 0:00:37.1]} 30. Qg2 {[%clk 0:00:12.7]} 30... Ba6 {[%clk
0:00:31.8]} 31. Nf3 {[%clk 0:00:12.4]} 31... b5 {[%clk 0:00:31.2]} 32. Nxg5
{[%clk 0:00:12]} 32... hxg5 {[%clk 0:00:32.1]} 33. Ng4 {[%clk 0:00:10.7]} 33...
Bc8 {[%clk 0:00:29.5]} 34. f3 {[%clk 0:00:09.3]} 34... Qb6 {[%clk 0:00:24.9]}
35. Nf2 {[%clk 0:00:08.5]} 35... Ne1 {[%clk 0:00:22]} 36. Qh1 {[%clk 0:00:08.1]}
36... Qe3 {[%clk 0:00:22.4]} 37. Rd1 {[%clk 0:00:02]} 37... Qxf2+ {[%clk
0:00:22.1]} 0-1

[Event "*** Titled Tuesday Blitz"]
[Site "Chess.com"]
[Date "2020.04.14"]
[Round "7"]
[White "arminmusovic"]
[Black "Olkaa"]
[Result "1-0"]
[WhiteElo "2515"]
[BlackElo "2647"]
[TimeControl "180+1"]
[EndTime "11:14:10 PDT"]
[Termination "arminmusovic won on time"]

1. a3 {[%clk 0:03:00.9]} 1... Nf6 {[%clk 0:02:58.5]} 2. Nc3 {[%clk 0:03:01.5]}
2... g6 {[%clk 0:02:58.7]} 3. e4 {[%clk 0:03:01.7]} 3... d6 {[%clk 0:02:55]} 4.
d4 {[%clk 0:03:01.7]} 4... Bg7 {[%clk 0:02:55.2]} 5. Bg5 {[%clk 0:03:02.3]} 5...
h6 {[%clk 0:02:52.6]} 6. Bh4 {[%clk 0:03:02.2]} 6... O-O {[%clk 0:02:49]} 7. f4
{[%clk 0:03:02.4]} 7... c5 {[%clk 0:02:43.9]} 8. dxc5 {[%clk 0:03:03.3]} 8...
dxc5 {[%clk 0:02:32.6]} 9. Qxd8 {[%clk 0:03:04.2]} 9... Rxd8 {[%clk 0:02:32.4]}
10. e5 {[%clk 0:03:04.8]} 10... Nd5 {[%clk 0:02:25]} 11. O-O-O {[%clk
0:03:04.4]} 11... Be6 {[%clk 0:02:12.2]} 12. Bc4 {[%clk 0:03:04.4]} 12... g5
{[%clk 0:02:02.3]} 13. fxg5 {[%clk 0:02:49.2]} 13... hxg5 {[%clk 0:02:01.6]} 14.
Bxg5 {[%clk 0:02:40.6]} 14... Nc6 {[%clk 0:01:53.3]} 15. Bxd5 {[%clk 0:02:28.1]}
15... Bxd5 {[%clk 0:01:47.9]} 16. Nxd5 {[%clk 0:02:27.7]} 16... Bxe5 {[%clk
0:01:45.1]} 17. Nf3 {[%clk 0:02:26.1]} 17... f6 {[%clk 0:01:36.1]} 18. Nxe5
{[%clk 0:02:18]} 18... Nxe5 {[%clk 0:01:34.8]} 19. Bf4 {[%clk 0:02:04.3]} 19...
Nc6 {[%clk 0:01:30.9]} 20. Nc7 {[%clk 0:01:56.3]} 20... Rac8 {[%clk 0:01:25.9]}
21. Ne6 {[%clk 0:01:56.1]} 21... Rxd1+ {[%clk 0:01:16.1]} 22. Rxd1 {[%clk
0:01:57]} 22... b6 {[%clk 0:01:07.8]} 23. Bg3 {[%clk 0:01:43]} 23... Kf7 {[%clk
0:01:06.6]} 24. Nc7 {[%clk 0:01:42]} 24... Nd4 {[%clk 0:01:00.4]} 25. Nd5 {[%clk
0:01:39.7]} 25... Rd8 {[%clk 0:00:57.3]} 26. Ne3 {[%clk 0:01:37.1]} 26... Rg8
{[%clk 0:00:47.3]} 27. Re1 {[%clk 0:01:31.8]} 27... e5 {[%clk 0:00:42.4]} 28. c3
{[%clk 0:01:31.9]} 28... Nc6 {[%clk 0:00:37.8]} 29. Rf1 {[%clk 0:01:15.9]} 29...
Ke6 {[%clk 0:00:36.6]} 30. Bh4 {[%clk 0:01:08.3]} 30... Rg6 {[%clk 0:00:28.9]}
31. g3 {[%clk 0:01:06.1]} 31... Ne7 {[%clk 0:00:22.7]} 32. Kd2 {[%clk
0:01:06.4]} 32... Ng8 {[%clk 0:00:20]} 33. Nf5 {[%clk 0:01:04.3]} 33... Rg4
{[%clk 0:00:15.8]} 34. Ne3 {[%clk 0:01:00.4]} 34... Rg7 {[%clk 0:00:14.9]} 35.
Nf5 {[%clk 0:00:58.8]} 35... Rd7+ {[%clk 0:00:14.3]} 36. Ke2 {[%clk 0:00:59.1]}
36... c4 {[%clk 0:00:09.9]} 37. Ne3 {[%clk 0:00:59.1]} 37... b5 {[%clk
0:00:09.4]} 38. Ng4 {[%clk 0:00:59.1]} 38... f5 {[%clk 0:00:07.8]} 39. Ne3
{[%clk 0:00:57.5]} 39... Rf7 {[%clk 0:00:06.1]} 40. g4 {[%clk 0:00:50.7]} 40...
f4 {[%clk 0:00:03.8]} 41. Nf5 {[%clk 0:00:51.1]} 41... Rd7 {[%clk 0:00:02.9]}
42. Rd1 {[%clk 0:00:41.2]} 42... Rxd1 {[%clk 0:00:02.3]} 43. Kxd1 {[%clk
0:00:42.1]} 43... e4 {[%clk 0:00:02.7]} 44. Ke2 {[%clk 0:00:42.6]} 44... Ke5
{[%clk 0:00:02.5]} 45. Bg5 {[%clk 0:00:42.7]} 45... e3 {[%clk 0:00:01.4]} 46.
Kf3 {[%clk 0:00:41.7]} 1-0

[Event "*** Titled Tuesday Blitz"]
[Site "Chess.com"]
[Date "2020.04.14"]
[Round "7"]
[White "MaxVavulin"]
[Black "Disturbed01"]
[Result "1-0"]
[WhiteElo "2565"]
[BlackElo "2663"]
[TimeControl "180+1"]
[EndTime "11:14:11 PDT"]
[Termination "MaxVavulin won by resignation"]

1. e4 {[%clk 0:03:00.9]} 1... c5 {[%clk 0:02:56.8]} 2. Nf3 {[%clk 0:03:00.6]}
2... Nc6 {[%clk 0:02:57.1]} 3. Nc3 {[%clk 0:02:55.9]} 3... g6 {[%clk 0:02:56.5]}
4. d4 {[%clk 0:02:55.3]} 4... cxd4 {[%clk 0:02:57.4]} 5. Nxd4 {[%clk 0:02:55.8]}
5... Bg7 {[%clk 0:02:58]} 6. Be3 {[%clk 0:02:56.3]} 6... Nf6 {[%clk 0:02:57.6]}
7. Bc4 {[%clk 0:02:56.2]} 7... O-O {[%clk 0:02:58.1]} 8. Bb3 {[%clk 0:02:55.4]}
8... d5 {[%clk 0:02:58.3]} 9. exd5 {[%clk 0:02:53.3]} 9... Na5 {[%clk
0:02:58.2]} 10. Qf3 {[%clk 0:02:50.2]} 10... Bg4 {[%clk 0:02:53.2]} 11. Qg3
{[%clk 0:02:47.9]} 11... Nxb3 {[%clk 0:02:50.9]} 12. axb3 {[%clk 0:02:44]} 12...
Bh5 {[%clk 0:02:51.3]} 13. d6 {[%clk 0:02:41.7]} 13... exd6 {[%clk 0:02:50.2]}
14. O-O {[%clk 0:02:40.3]} 14... a6 {[%clk 0:02:42.2]} 15. h3 {[%clk 0:02:34.8]}
15... Re8 {[%clk 0:02:15.8]} 16. b4 {[%clk 0:02:10.7]} 16... Ne4 {[%clk
0:02:06.6]} 17. Nxe4 {[%clk 0:02:09.4]} 17... Rxe4 {[%clk 0:02:07.5]} 18. c3
{[%clk 0:02:03.8]} 18... Qe7 {[%clk 0:02:00.9]} 19. Nf3 {[%clk 0:01:07.4]} 19...
Bxf3 {[%clk 0:01:58.4]} 20. Qxf3 {[%clk 0:01:07.1]} 20... Re8 {[%clk 0:01:57.7]}
21. Rfd1 {[%clk 0:01:00.3]} 21... Qe6 {[%clk 0:01:52.6]} 22. Rd2 {[%clk
0:00:44.5]} 22... f5 {[%clk 0:01:19.1]} 23. Rad1 {[%clk 0:00:43.6]} 23... Be5
{[%clk 0:01:19.3]} 24. g3 {[%clk 0:00:36.1]} 24... Qc4 {[%clk 0:01:13.9]} 25.
Bd4 {[%clk 0:00:34.3]} 25... d5 {[%clk 0:01:05.8]} 26. Kh2 {[%clk 0:00:28.1]}
26... f4 {[%clk 0:00:45.3]} 27. g4 {[%clk 0:00:26.7]} 27... Qc6 {[%clk
0:00:42.9]} 28. Kg2 {[%clk 0:00:26.1]} 28... g5 {[%clk 0:00:32.2]} 29. Bc5
{[%clk 0:00:25.8]} 29... b6 {[%clk 0:00:24.5]} 30. Rxd5 {[%clk 0:00:25.4]} 30...
Bf6 {[%clk 0:00:15.3]} 31. Rd6 {[%clk 0:00:24.6]} 31... Qc7 {[%clk 0:00:13.8]}
32. Bxb6 {[%clk 0:00:19]} 32... Qf7 {[%clk 0:00:13]} 33. Bd4 {[%clk 0:00:17.9]}
33... Be7 {[%clk 0:00:11.8]} 34. Rxa6 {[%clk 0:00:16.9]} 34... Bf8 {[%clk
0:00:11.6]} 35. Ra7 {[%clk 0:00:16.4]} 35... R8e7 {[%clk 0:00:12.1]} 36. Qxe4
{[%clk 0:00:14.5]} 36... Rxe4 {[%clk 0:00:11.6]} 37. Rxf7 {[%clk 0:00:15]} 37...
Kxf7 {[%clk 0:00:12.2]} 38. Kf3 {[%clk 0:00:15.5]} 38... Re6 {[%clk 0:00:12.2]}
39. Ra1 {[%clk 0:00:15.2]} 1-0

[Event "*** Titled Tuesday Blitz"]
[Site "Chess.com"]
[Date "2020.04.14"]
[Round "7"]
[White "Bambi2006"]
[Black "Monmoransy"]
[Result "1-0"]
[WhiteElo "2454"]
[BlackElo "2597"]
[TimeControl "180+1"]
[EndTime "11:14:11 PDT"]
[Termination "Bambi2006 won on time"]

1. d4 {[%clk 0:03:00.9]} 1... d5 {[%clk 0:02:56.6]} 2. Nf3 {[%clk 0:02:59.5]}
2... Bf5 {[%clk 0:02:55.9]} 3. c4 {[%clk 0:02:56]} 3... e6 {[%clk 0:02:55.4]} 4.
g3 {[%clk 0:02:49.7]} 4... Nf6 {[%clk 0:02:54]} 5. Bg2 {[%clk 0:02:47.4]} 5...
c6 {[%clk 0:02:54.3]} 6. Qb3 {[%clk 0:02:40.5]} 6... Qb6 {[%clk 0:02:53.2]} 7.
c5 {[%clk 0:02:38.4]} 7... Qxb3 {[%clk 0:02:47.6]} 8. axb3 {[%clk 0:02:39.3]}
8... Na6 {[%clk 0:02:46.7]} 9. Bf4 {[%clk 0:02:36.1]} 9... Be7 {[%clk
0:02:35.6]} 10. O-O {[%clk 0:02:32.2]} 10... h6 {[%clk 0:02:28.2]} 11. Nc3
{[%clk 0:02:28.7]} 11... O-O {[%clk 0:02:24]} 12. h4 {[%clk 0:02:26.7]} 12...
Rfc8 {[%clk 0:02:22.3]} 13. Ra4 {[%clk 0:02:21.5]} 13... Nc7 {[%clk 0:02:20.4]}
14. Rb4 {[%clk 0:02:14.6]} 14... b5 {[%clk 0:02:15.7]} 15. cxb6 {[%clk 0:02:08]}
15... Bxb4 {[%clk 0:02:10.2]} 16. b7 {[%clk 0:01:53.5]} 16... Rab8 {[%clk
0:01:57.3]} 17. bxc8=Q+ {[%clk 0:01:53.1]} 17... Rxc8 {[%clk 0:01:56.7]} 18. Ra1
{[%clk 0:01:48.1]} 18... a5 {[%clk 0:01:56.2]} 19. Na4 {[%clk 0:01:44.2]} 19...
Nb5 {[%clk 0:01:53]} 20. Nc5 {[%clk 0:01:40.2]} 20... Bc2 {[%clk 0:01:39.7]} 21.
Bd2 {[%clk 0:01:32.2]} 21... Bxd2 {[%clk 0:01:25.4]} 22. Nxd2 {[%clk 0:01:30.9]}
22... Nxd4 {[%clk 0:01:25]} 23. e3 {[%clk 0:01:25.7]} 23... Nb5 {[%clk
0:01:20.8]} 24. Rxa5 {[%clk 0:01:25.6]} 24... e5 {[%clk 0:01:15.9]} 25. Bh3
{[%clk 0:01:20.5]} 25... Rc7 {[%clk 0:01:08.6]} 26. g4 {[%clk 0:01:16.8]} 26...
g5 {[%clk 0:01:06.5]} 27. hxg5 {[%clk 0:01:14.8]} 27... hxg5 {[%clk 0:01:06.3]}
28. Nf3 {[%clk 0:01:14]} 28... Bd1 {[%clk 0:00:58.7]} 29. Nxe5 {[%clk
0:01:08.4]} 29... Ne4 {[%clk 0:00:46.1]} 30. Nxe4 {[%clk 0:01:05.2]} 30... dxe4
{[%clk 0:00:45.8]} 31. Nxc6 {[%clk 0:01:03.2]} 31... Rxc6 {[%clk 0:00:40.7]} 32.
Rxb5 {[%clk 0:01:03.5]} 32... f6 {[%clk 0:00:40.1]} 33. Bg2 {[%clk 0:00:59.8]}
33... Rc1 {[%clk 0:00:37.1]} 34. Kh2 {[%clk 0:00:58.3]} 34... Rc2 {[%clk
0:00:32.4]} 35. Kg3 {[%clk 0:00:55.6]} 35... Rxb2 {[%clk 0:00:30.8]} 36. Bxe4
{[%clk 0:00:55]} 36... Kg7 {[%clk 0:00:28.1]} 37. Bd5 {[%clk 0:00:52.9]} 37...
Kf8 {[%clk 0:00:23.5]} 38. f4 {[%clk 0:00:49]} 38... Ke7 {[%clk 0:00:22.4]} 39.
Rb7+ {[%clk 0:00:46.4]} 39... Kd6 {[%clk 0:00:22]} 40. Bc4 {[%clk 0:00:45.1]}
40... gxf4+ {[%clk 0:00:18.7]} 41. exf4 {[%clk 0:00:41.7]} 41... Be2 {[%clk
0:00:18.5]} 42. Rb6+ {[%clk 0:00:38.9]} 42... Kc5 {[%clk 0:00:17.5]} 43. Rxf6
{[%clk 0:00:33.6]} 43... Bxc4 {[%clk 0:00:16.5]} 44. bxc4 {[%clk 0:00:34.5]} 1-0